[Event "48th Rilton Cup 2018"]
[Site "Stockholm"]
[Date "2019.01.04"]
[Round "8"]
[White "Blomqvist, Erik"]
[Black "Gajewski, Grzegorz"]
[Result "0-1"]
[ECO "A06"]
[WhiteElo "2497"]
[BlackElo "2598"]
[Annotator "ChessBase"]
[PlyCount "54"]
[EventDate "2018.12.27"]
[EventType "swiss"]
[EventCountry "SWE"]
[SourceTitle "playchess.com"]
[Source "ChessBase"]
[SourceQuality "1"]
[TimeControl "40/5400+30:1800+30"]

1. Nf3 {[%emt 0:00:00]} d5 {[%emt 0:01:47]} 2. g3 {[%emt 0:00:00]} Nd7 {[%emt 0:00:12]} 3. Bg2 {[%emt 0:04:40]} e5 {[%emt 0:00:53]} 4. d3 {[%emt 0:00:33]} Ngf6 {[%emt 0:00:14]} 5. O-O {[%emt 0:00:55]} c6 {[%emt 0:00:07]} 6. e4 {[%emt 0:03:01]} dxe4 {[%emt 0:00:12]} 7. dxe4 {[%emt 0:00:06]} Bc5 {[%emt 0:00:16]} 8. Qe2 {[%emt 0:08:48]} O-O {[%emt 0:02:01]} 9. a4 {[%emt 0:01:03]} a5 {[%emt 0:01:31]} 10. Nbd2 {[%emt 0:05:13]} b6 {[%emt 0:06:13]} 11. Nc4 {[%emt 0:34:13]} Ba6 {[%emt 0:00:05]} 12. Bh3 {[%emt 0:03:00]} Ne8 {[%emt 0:14:37]} 13. Rd1 {[%emt 0:05:17]} Nd6 {[%emt 0:00:31]} 14. b3 {[%emt 0:00:14]} Nf6 {[%emt 0:22:29]} 15. Be3 {[%emt 0:10:22]} Nfxe4 {[%emt 0:08:24]} 16. Bxc5 {[%emt 0:00:52]} Bxc4 {[%emt 0:02:55]} 17. bxc4 {[%emt 0:00:32]} bxc5 {[%emt 0:00:24]} 18. Nxe5 {[%emt 0:05:19]} Re8 {[%emt 0:02:59]} 19. f4 {[%emt 0:05:17]} f6 {[%emt 0:03:18]} 20. Bf5 {[%emt 0:05:28]} fxe5 {[%emt 0:01:22]} 21. Bxe4 {[%emt 0:00:04]} exf4 {[%emt 0:00:08]} 22. Bxh7+ {[%emt 0:00:20]} Kxh7 {[%emt 0:00:14]} 23. Qh5+ {[%emt 0:00:30]} Kg8 {[%emt 0:00:06]} 24. Qg6 {[%emt 0:00:34]} Qe7 {[%emt 0:03:17]} 25. Rxd6 {[%emt 0:01:26]} Qe3+ {[%emt 0:01:48]} 26. Kg2 {[%emt 0:00:11]} Qe2+ {[%emt 0:00:48]} 27. Kh3 {[%emt 0:00:44]} Re5 {[%emt 0:00:06]} 0-1

[Event "48th Rilton Cup 2018"]
[Site "Stockholm"]
[Date "2019.01.04"]
[Round "8"]
[White "Salomon, Johan"]
[Black "Volkov, Sergey"]
[Result "0-1"]
[ECO "A06"]
[WhiteElo "2494"]
[BlackElo "2583"]
[Annotator "ChessBase"]
[PlyCount "82"]
[EventDate "2018.12.27"]
[EventType "swiss"]
[EventCountry "SWE"]
[SourceTitle "playchess.com"]
[Source "ChessBase"]
[SourceQuality "1"]
[TimeControl "40/5400+30:1800+30"]

1. Nf3 {[%emt 0:00:00]} d5 {[%emt 0:00:00]} 2. g3 {[%emt 0:00:00]} Nf6 {[%emt 0:00:00]} 3. Bg2 {[%emt 0:00:06]} Bf5 {[%emt 0:00:00]} 4. O-O {[%emt 0:01:18]} e6 {[%emt 0:00:18]} 5. d3 {[%emt 0:01:57]} Be7 {[%emt 0:00:53]} 6. c4 {[%emt 0:02:29]} c6 {[%emt 0:01:03]} 7. cxd5 {[%emt 0:02:34]} exd5 {[%emt 0:00:38]} 8. Qb3 {[%emt 0:00:40]} Qc8 {[%emt 0:02:18]} 9. e4 {[%emt 0:12:35]} dxe4 {[%emt 0:01:35]} 10. Ng5 {[%emt 0:00:04]} Bg6 {[%emt 0:00:35]} 11. dxe4 {[%emt 0:00:42]} h6 {[%emt 0:03:46]} 12. e5 {[%emt 0:00:36]} Nfd7 {[%emt 0:06:50]} 13. Nh3 {[%emt 0:13:35]} Nc5 {[%emt 0:04:29]} 14. Qc3 {[%emt 0:01:31]} O-O {[%emt 0:06:00]} 15. Be3 {[%emt 0:03:22]} Nba6 {[%emt 0:00:56]} 16. Nf4 {[%emt 0:01:33]} Bf5 {[%emt 0:03:06]} 17. Nd2 {[%emt 0:00:34]} Rd8 {[%emt 0:01:01]} 18. Nc4 {[%emt 0:03:40]} Nd3 {[%emt 0:02:12]} 19. Rad1 {[%emt 0:04:42]} Nab4 {[%emt 0:04:25]} 20. Nd6 {[%emt 0:23:52]} Bxd6 {[%emt 0:02:05]} 21. exd6 {[%emt 0:00:04]} Rxd6 {[%emt 0:00:25]} 22. Nh5 {[%emt 0:01:35]} Qf8 {[%emt 0:03:01]} 23. Bc5 {[%emt 0:00:53]} Nxa2 {[%emt 0:01:01]} 24. Qd2 {[%emt 0:06:43]} Nxc5 {[%emt 0:01:32]} 25. Qxd6 {[%emt 0:00:04]} Bg4 {[%emt 0:06:13]} 26. Qxf8+ {[%emt 0:00:05]} Kxf8 {[%emt 0:00:10]} 27. Ra1 {[%emt 0:00:06]} Nb4 {[%emt 0:00:13]} 28. Nf4 {[%emt 0:00:27]} g5 {[%emt 0:00:56]} 29. h3 {[%emt 0:07:33]} Bf5 {[%emt 0:01:40]} 30. g4 {[%emt 0:05:56]} Bc2 {[%emt 0:04:04]} 31. Nh5 {[%emt 0:00:01]} Nb3 {[%emt 0:04:14]} 32. Ra3 {[%emt 0:00:23]} a5 {[%emt 0:00:10]} 33. Be4 {[%emt 0:02:22]} Nd2 {[%emt 0:01:55]} 34. Bxc2 {[%emt 0:00:42]} Nxf1 {[%emt 0:01:32]} 35. Bf5 {[%emt 0:01:49]} Nd2 {[%emt 0:00:10]} 36. Nf6 {[%emt 0:00:20]} Ke7 {[%emt 0:02:54]} 37. Nd7 {[%emt 0:00:15]} Nc4 {[%emt 0:01:44]} 38. Rc3 {[%emt 0:00:25]} Nxb2 {[%emt 0:00:48]} 39. Nb6 {[%emt 0:01:13]} Ra6 {[%emt 0:02:47]} 40. Re3+ {[%emt 0:00:29]} Kd6 {[%emt 0:02:00]} 41. Nc8+ {[%emt 0:30:05]} Kc5 {[%emt 0:30:27]} 0-1

[Event "48th Rilton Cup 2018"]
[Site "Stockholm"]
[Date "2019.01.04"]
[Round "8"]
[White "Gholami, Aryan"]
[Black "Rohith Krishna S"]
[Result "1-0"]
[ECO "D02"]
[WhiteElo "2488"]
[BlackElo "2399"]
[Annotator "ChessBase"]
[PlyCount "115"]
[EventDate "2018.12.27"]
[EventType "swiss"]
[EventCountry "SWE"]
[SourceTitle "playchess.com"]
[Source "ChessBase"]
[SourceQuality "1"]
[TimeControl "40/5400+30:1800+30"]

1. Nf3 {[%emt 0:00:00]} d5 {[%emt 0:01:34]} 2. d4 {[%emt 0:00:34]} Nf6 {[%emt 0:00:51]} 3. Bf4 {[%emt 0:00:13]} e6 {[%emt 0:00:38]} 4. e3 {[%emt 0:00:08]} Bd6 {[%emt 0:00:47]} 5. Bd3 {[%emt 0:00:11]} O-O {[%emt 0:00:34]} 6. O-O {[%emt 0:00:23]} b6 {[%emt 0:01:15]} 7. Ne5 {[%emt 0:00:12]} Bb7 {[%emt 0:01:32]} 8. Qf3 {[%emt 0:00:19]} Ne4 {[%emt 0:06:54]} 9. Qh3 {[%emt 0:01:00]} f5 {[%emt 0:00:20]} 10. f3 {[%emt 0:02:18]} Nf6 {[%emt 0:01:30]} 11. g4 {[%emt 0:02:30]} fxg4 {[%emt 0:06:34]} 12. fxg4 {[%emt 0:02:09]} Ne4 {[%emt 0:00:11]} 13. Nc3 {[%emt 0:03:15]} Qe7 {[%emt 0:08:34]} 14. Nxe4 {[%emt 0:03:20]} dxe4 {[%emt 0:00:47]} 15. Qg2 {[%emt 0:00:06]} exd3 {[%emt 0:26:27]} 16. Qxb7 {[%emt 0:00:14]} Nd7 {[%emt 0:00:09]} 17. Nxd3 {[%emt 0:00:19]} Qh4 {[%emt 0:00:38]} 18. Bxd6 {[%emt 0:03:48]} cxd6 {[%emt 0:00:06]} 19. Qe4 {[%emt 0:01:48]} Qh6 {[%emt 0:06:02]} 20. Rf4 {[%emt 0:02:50]} d5 {[%emt 0:03:03]} 21. Qg2 {[%emt 0:00:14]} Qg5 {[%emt 0:03:49]} 22. Raf1 {[%emt 0:01:07]} Rfc8 {[%emt 0:04:50]} 23. c3 {[%emt 0:03:23]} Qg6 {[%emt 0:00:08]} 24. e4 {[%emt 0:00:07]} Rf8 {[%emt 0:01:40]} 25. Rxf8+ {[%emt 0:01:18]} Rxf8 {[%emt 0:00:08]} 26. Rxf8+ {[%emt 0:00:29]} Nxf8 {[%emt 0:00:06]} 27. Ne5 {[%emt 0:00:08]} Qg5 {[%emt 0:08:47]} 28. exd5 {[%emt 0:01:00]} Qc1+ {[%emt 0:00:07]} 29. Qf1 {[%emt 0:00:04]} Qxf1+ {[%emt 0:00:05]} 30. Kxf1 {[%emt 0:00:04]} exd5 {[%emt 0:00:04]} 31. Nc6 {[%emt 0:00:05]} Ng6 {[%emt 0:00:10]} 32. Nxa7 {[%emt 0:00:14]} Ne7 {[%emt 0:00:04]} 33. Nb5 {[%emt 0:02:01]} Kf7 {[%emt 0:00:23]} 34. Nc7 {[%emt 0:00:05]} Kf6 {[%emt 0:00:18]} 35. Kf2 {[%emt 0:00:10]} g6 {[%emt 0:00:51]} 36. Kg3 {[%emt 0:00:16]} h6 {[%emt 0:00:11]} 37. a4 {[%emt 0:00:11]} Kf7 {[%emt 0:00:53]} 38. b4 {[%emt 0:00:07]} Nc8 {[%emt 0:00:08]} 39. Nxd5 {[%emt 0:00:12]} Ke6 {[%emt 0:00:39]} 40. c4 {[%emt 0:00:10]} Kd6 {[%emt 0:00:11]} 41. h4 {[%emt 0:30:16]} Kc6 {[%emt 0:30:08]} 42. b5+ {[%emt 0:00:09]} Kb7 {[%emt 0:00:10]} 43. c5 {[%emt 0:00:06]} g5 {[%emt 0:00:10]} 44. hxg5 {[%emt 0:00:05]} hxg5 {[%emt 0:00:05]} 45. Kf3 {[%emt 0:00:21]} bxc5 {[%emt 0:00:10]} 46. dxc5 {[%emt 0:00:04]} Kb8 {[%emt 0:00:06]} 47. Ke4 {[%emt 0:00:04]} Kb7 {[%emt 0:00:05]} 48. Kf5 {[%emt 0:00:04]} Kb8 {[%emt 0:00:05]} 49. Kxg5 {[%emt 0:00:04]} Kb7 {[%emt 0:00:06]} 50. Kh4 {[%emt 0:00:04]} Kb8 {[%emt 0:00:06]} 51. g5 {[%emt 0:00:04]} Kb7 {[%emt 0:00:04]} 52. g6 {[%emt 0:00:04]} Kb8 {[%emt 0:00:11]} 53. g7 {[%emt 0:00:04]} Kb7 {[%emt 0:00:06]} 54. g8=Q {[%emt 0:00:07]} Kb8 {[%emt 0:00:04]} 55. Qd8 {[%emt 0:00:11]} Ka7 {[%emt 0:00:05]} 56. Qc7+ {[%emt 0:00:13]} Ka8 {[%emt 0:00:03]} 57. Qxc8+ {[%emt 0:00:17]} Ka7 {[%emt 0:00:06]} 58. b6# {[%emt 0:00:03]} 1-0

[Event "48th Rilton Cup 2018"]
[Site "Stockholm"]
[Date "2019.01.04"]
[Round "8"]
[White "Bellia, Fabrizio"]
[Black "Soysal, Serkan"]
[Result "1/2-1/2"]
[ECO "B12"]
[WhiteElo "2458"]
[BlackElo "2398"]
[Annotator "ChessBase"]
[PlyCount "160"]
[EventDate "2018.12.27"]
[EventType "swiss"]
[EventCountry "SWE"]
[SourceTitle "playchess.com"]
[Source "ChessBase"]
[SourceQuality "1"]
[TimeControl "40/5400+30:1800+30"]

1. e4 {[%emt 0:00:00]} c6 {[%emt 0:00:00]} 2. d4 {[%emt 0:00:00]} d5 {[%emt 0:00:00]} 3. e5 {[%emt 0:00:00]} Bf5 {[%emt 0:00:13]} 4. Nd2 {[%emt 0:00:00]} e6 {[%emt 0:00:09]} 5. Nb3 {[%emt 0:00:03]} Nd7 {[%emt 0:00:06]} 6. Nf3 {[%emt 0:00:06]} c5 {[%emt 0:05:30]} 7. dxc5 {[%emt 0:00:33]} Bxc5 {[%emt 0:00:18]} 8. Nxc5 {[%emt 0:01:10]} Nxc5 {[%emt 0:00:18]} 9. Nd4 {[%emt 0:01:35]} Ne7 {[%emt 0:02:00]} 10. Be2 {[%emt 0:06:32]} O-O {[%emt 0:03:21]} 11. O-O {[%emt 0:01:13]} Bg6 {[%emt 0:09:23]} 12. a4 {[%emt 0:07:48]} Nc6 {[%emt 0:08:21]} 13. Nxc6 {[%emt 0:03:12]} bxc6 {[%emt 0:00:02]} 14. Be3 {[%emt 0:00:29]} Nd7 {[%emt 0:00:20]} 15. f4 {[%emt 0:00:21]} f6 {[%emt 0:06:31]} 16. exf6 {[%emt 0:03:57]} Qxf6 {[%emt 0:00:16]} 17. c3 {[%emt 0:04:55]} Be4 {[%emt 0:13:57]} 18. Bf3 {[%emt 0:09:43]} Qg6 {[%emt 0:01:32]} 19. Qd4 {[%emt 0:05:03]} Bxf3 {[%emt 0:03:28]} 20. Rxf3 {[%emt 0:00:06]} c5 {[%emt 0:02:51]} 21. Qd2 {[%emt 0:01:53]} Rac8 {[%emt 0:03:38]} 22. Rg3 {[%emt 0:02:52]} Qf7 {[%emt 0:01:56]} 23. Qe2 {[%emt 0:02:38]} Nf6 {[%emt 0:01:13]} 24. Rf1 {[%emt 0:01:41]} Ne4 {[%emt 0:03:14]} 25. Rgf3 {[%emt 0:00:26]} Qd7 {[%emt 0:06:20]} 26. Qc2 {[%emt 0:00:31]} a5 {[%emt 0:02:38]} 27. Rd1 {[%emt 0:03:08]} Qb7 {[%emt 0:00:48]} 28. c4 {[%emt 0:03:26]} Rb8 {[%emt 0:14:30]} 29. Bc1 {[%emt 0:02:24]} Qc6 {[%emt 0:02:22]} 30. f5 {[%emt 0:05:11]} d4 {[%emt 0:01:12]} 31. fxe6 {[%emt 0:02:19]} Qxe6 {[%emt 0:00:01]} 32. Rdf1 {[%emt 0:09:14]} Rxf3 {[%emt 0:00:29]} 33. Rxf3 {[%emt 0:00:06]} Re8 {[%emt 0:03:20]} 34. h3 {[%emt 0:02:57]} Nd6 {[%emt 0:01:50]} 35. b3 {[%emt 0:05:34]} Ne4 {[%emt 0:03:03]} 36. Bd2 {[%emt 0:02:32]} Nxd2 {[%emt 0:01:21]} 37. Qxd2 {[%emt 0:00:06]} Qe1+ {[%emt 0:00:08]} 38. Qxe1 {[%emt 0:00:06]} Rxe1+ {[%emt 0:00:01]} 39. Kf2 {[%emt 0:00:11]} Re7 {[%emt 0:00:54]} 40. Rg3 {[%emt 0:01:47]} Re5 {[%emt 0:01:05]} 41. Rd3 {[%emt 0:43:12]} Kf7 {[%emt 0:30:26]} 42. Kf1 {[%emt 0:00:00]} Ke6 {[%emt 0:00:00]} 43. Kf2 {[%emt 0:00:00]} Kf5 {[%emt 0:00:00]} 44. Rf3+ {[%emt 0:00:00]} Ke4 {[%emt 0:00:00]} 45. Ke2 {[%emt 0:00:00]} Rg5 {[%emt 0:00:00]} 46. g4 {[%emt 0:00:00]} h5 {[%emt 0:00:00]} 47. Rf7 {[%emt 0:00:00]} hxg4 {[%emt 0:00:00]} 48. hxg4 {[%emt 0:00:00]} Rxg4 {[%emt 0:00:00]} 49. Re7+ {[%emt 0:00:00]} Kf4 {[%emt 0:00:00]} 50. Ra7 {[%emt 0:00:00]} Rg2+ {[%emt 0:00:00]} 51. Kd3 {[%emt 0:00:00]} Rb2 {[%emt 0:00:00]} 52. Rxa5 {[%emt 0:00:00]} Rxb3+ {[%emt 0:00:00]} 53. Kd2 {[%emt 0:00:00]} Ke4 {[%emt 0:00:22]} 54. Rxc5 {[%emt 0:00:00]} Rb2+ {[%emt 0:00:09]} 55. Kc1 {[%emt 0:00:00]} Rb4 {[%emt 0:03:17]} 56. Rg5 {[%emt 0:00:00]} Rxc4+ {[%emt 0:00:37]} 57. Kd2 {[%emt 0:00:00]} Rc7 {[%emt 0:00:14]} 58. Rg4+ {[%emt 0:00:00]} Kf3 {[%emt 0:02:28]} 59. Rg6 {[%emt 0:00:45]} Kf4 {[%emt 0:00:38]} 60. Kd3 {[%emt 0:00:25]} Rd7 {[%emt 0:00:28]} 61. a5 {[%emt 0:00:58]} Kf5 {[%emt 0:00:02]} 62. Rg1 {[%emt 0:00:13]} g5 {[%emt 0:00:02]} 63. Rf1+ {[%emt 0:00:35]} Kg4 {[%emt 0:00:01]} 64. Rg1+ {[%emt 0:00:04]} Kf5 {[%emt 0:00:00]} 65. Rf1+ {[%emt 0:00:03]} Kg6 {[%emt 0:00:48]} 66. Rg1 {[%emt 0:01:14]} Rd6 {[%emt 0:00:25]} 67. Ra1 {[%emt 0:00:24]} g4 {[%emt 0:02:07]} 68. a6 {[%emt 0:00:04]} Rd8 {[%emt 0:00:04]} 69. a7 {[%emt 0:00:56]} Ra8 {[%emt 0:00:03]} 70. Kxd4 {[%emt 0:00:13]} g3 {[%emt 0:00:49]} 71. Kc5 {[%emt 0:00:19]} Kf5 {[%emt 0:00:17]} 72. Kb6 {[%emt 0:00:22]} Kg4 {[%emt 0:00:19]} 73. Kb7 {[%emt 0:00:05]} Rxa7+ {[%emt 0:00:04]} 74. Kxa7 {[%emt 0:00:11]} g2 {[%emt 0:00:07]} 75. Kb6 {[%emt 0:00:09]} Kf3 {[%emt 0:00:01]} 76. Kc5 {[%emt 0:00:07]} Kf2 {[%emt 0:00:03]} 77. Ra2+ {[%emt 0:00:05]} Kf1 {[%emt 0:00:06]} 78. Ra1+ {[%emt 0:00:06]} Kf2 {[%emt 0:00:04]} 79. Kd4 {[%emt 0:00:02]} g1=Q {[%emt 0:00:07]} 80. Rxg1 {[%emt 0:00:01]} Kxg1 1/2-1/2

[Event "48th Rilton Cup 2018"]
[Site "Stockholm"]
[Date "2019.01.04"]
[Round "8"]
[White "Nesterov, Arseniy"]
[Black "Heberla, Bartlomiej"]
[Result "0-1"]
[ECO "A53"]
[WhiteElo "2411"]
[BlackElo "2550"]
[Annotator "ChessBase"]
[PlyCount "76"]
[EventDate "2018.12.27"]
[EventType "swiss"]
[EventCountry "SWE"]
[SourceTitle "playchess.com"]
[Source "ChessBase"]
[SourceQuality "1"]
[TimeControl "40/5400+30:1800+30"]

1. d4 {[%emt 0:00:00]} d6 {[%emt 0:03:09]} 2. c4 {[%emt 0:00:00]} Nf6 {[%emt 0:00:05]} 3. Nc3 {[%emt 0:00:00]} Nbd7 {[%emt 0:00:05]} 4. e4 {[%emt 0:00:39]} e5 {[%emt 0:00:02]} 5. d5 {[%emt 0:00:36]} Nc5 {[%emt 0:00:55]} 6. f3 {[%emt 0:02:36]} a5 {[%emt 0:03:13]} 7. Be3 {[%emt 0:00:19]} Be7 {[%emt 0:00:08]} 8. Qd2 {[%emt 0:02:10]} Nh5 {[%emt 0:01:00]} 9. O-O-O {[%emt 0:01:27]} h6 {[%emt 0:00:22]} 10. Nge2 {[%emt 0:06:01]} Bg5 {[%emt 0:13:56]} 11. g4 {[%emt 0:00:20]} Bxe3 {[%emt 0:00:07]} 12. Qxe3 {[%emt 0:00:08]} Nf6 {[%emt 0:00:06]} 13. h4 {[%emt 0:04:31]} Nfd7 {[%emt 0:14:02]} 14. Ng3 {[%emt 0:01:43]} g6 {[%emt 0:04:19]} 15. Nb5 {[%emt 0:10:23]} Nb6 {[%emt 0:09:51]} 16. f4 {[%emt 0:24:30]} exf4 {[%emt 0:03:50]} 17. Qxf4 {[%emt 0:00:05]} Nbd7 {[%emt 0:00:13]} 18. g5 {[%emt 0:27:20]} h5 {[%emt 0:03:55]} 19. Be2 {[%emt 0:06:31]} Ne5 {[%emt 0:00:40]} 20. Rhf1 {[%emt 0:00:24]} Bh3 {[%emt 0:08:53]} 21. Rf2 {[%emt 0:00:46]} Bg4 {[%emt 0:00:10]} 22. Kc2 {[%emt 0:02:30]} Bxe2 {[%emt 0:08:24]} 23. Nxe2 {[%emt 0:00:07]} a4 {[%emt 0:00:19]} 24. Qf6 {[%emt 0:04:41]} O-O {[%emt 0:07:48]} 25. Qxd8 {[%emt 0:00:11]} Rfxd8 {[%emt 0:00:01]} 26. Rd4 {[%emt 0:00:53]} Rd7 {[%emt 0:01:42]} 27. Ng3 {[%emt 0:02:25]} Re7 {[%emt 0:00:55]} 28. Kc3 {[%emt 0:01:28]} Ng4 {[%emt 0:01:54]} 29. Rf4 {[%emt 0:01:03]} Kg7 {[%emt 0:00:32]} 30. Rd2 {[%emt 0:00:40]} Rae8 {[%emt 0:07:09]} 31. Re2 {[%emt 0:00:15]} f6 {[%emt 0:00:10]} 32. gxf6+ {[%emt 0:00:40]} Nxf6 {[%emt 0:00:01]} 33. Kd4 {[%emt 0:00:21]} Ng4 {[%emt 0:00:29]} 34. Kc3 {[%emt 0:00:42]} Rf8 {[%emt 0:01:17]} 35. Rxf8 {[%emt 0:00:09]} Kxf8 {[%emt 0:00:01]} 36. Re1 {[%emt 0:00:50]} Rf7 {[%emt 0:00:09]} 37. Kd4 {[%emt 0:00:06]} Nh2 {[%emt 0:00:51]} 38. Rh1 {[%emt 0:00:54]} Rf3 {[%emt 0:00:28]} 0-1

[Event "48th Rilton Cup 2018"]
[Site "Stockholm"]
[Date "2019.01.04"]
[Round "8"]
[White "Keinanen, Toivo"]
[Black "Thybo, Jesper Sondergaard"]
[Result "0-1"]
[ECO "A15"]
[WhiteElo "2404"]
[BlackElo "2519"]
[Annotator "ChessBase"]
[PlyCount "116"]
[EventDate "2018.12.27"]
[EventType "swiss"]
[EventCountry "SWE"]
[SourceTitle "playchess.com"]
[Source "ChessBase"]
[SourceQuality "1"]
[TimeControl "40/5400+30:1800+30"]

1. c4 {[%emt 0:00:00]} Nf6 {[%emt 0:00:00]} 2. g3 {[%emt 0:01:20]} c6 {[%emt 0:00:00]} 3. Nf3 {[%emt 0:03:53]} d5 {[%emt 0:00:00]} 4. b3 {[%emt 0:00:38]} dxc4 {[%emt 0:00:11]} 5. bxc4 {[%emt 0:01:11]} e5 {[%emt 0:00:07]} 6. Nc3 {[%emt 0:05:30]} Bd6 {[%emt 0:04:58]} 7. Bg2 {[%emt 0:02:31]} O-O {[%emt 0:00:34]} 8. O-O {[%emt 0:01:54]} Re8 {[%emt 0:01:32]} 9. d3 {[%emt 0:04:43]} Nbd7 {[%emt 0:01:33]} 10. Rb1 {[%emt 0:14:40]} Nc5 {[%emt 0:06:48]} 11. Nd2 {[%emt 0:01:36]} Bg4 {[%emt 0:07:00]} 12. Nde4 {[%emt 0:07:35]} Nfxe4 {[%emt 0:01:01]} 13. Nxe4 {[%emt 0:00:02]} Nxe4 {[%emt 0:00:15]} 14. Bxe4 {[%emt 0:00:03]} Qd7 {[%emt 0:01:47]} 15. Qc2 {[%emt 0:06:35]} Bc5 {[%emt 0:03:18]} 16. Bg2 {[%emt 0:05:00]} h5 {[%emt 0:00:49]} 17. Be3 {[%emt 0:03:10]} Bxe3 {[%emt 0:13:15]} 18. fxe3 {[%emt 0:00:02]} h4 {[%emt 0:00:01]} 19. gxh4 {[%emt 0:03:59]} Qe7 {[%emt 0:01:24]} 20. Qd2 {[%emt 0:04:18]} Rad8 21. Qe1 Rd6 {[%emt 0:04:17]} 22. h3 {[%emt 0:03:49]} Bc8 {[%emt 0:01:11]} 23. Kh2 {[%emt 0:02:22]} Rh6 {[%emt 0:02:32]} 24. Be4 {[%emt 0:02:52]} g6 {[%emt 0:03:49]} 25. Qg3 {[%emt 0:02:24]} Qxh4 {[%emt 0:03:13]} 26. Bg2 {[%emt 0:01:35]} Kg7 {[%emt 0:02:20]} 27. Qxh4 {[%emt 0:09:50]} Rxh4 {[%emt 0:00:03]} 28. Kg3 {[%emt 0:00:00]} Reh8 {[%emt 0:00:34]} 29. Rh1 {[%emt 0:00:53]} f5 {[%emt 0:02:10]} 30. Kf2 {[%emt 0:02:30]} g5 {[%emt 0:02:00]} 31. Kg3 {[%emt 0:01:14]} Kf6 {[%emt 0:01:18]} 32. Kf2 {[%emt 0:00:39]} Ke7 {[%emt 0:02:01]} 33. a3 {[%emt 0:00:44]} Kd6 {[%emt 0:01:06]} 34. Rhg1 {[%emt 0:02:12]} Ke7 {[%emt 0:03:31]} 35. Rh1 {[%emt 0:00:40]} R8h6 {[%emt 0:01:53]} 36. a4 {[%emt 0:01:02]} a5 {[%emt 0:03:44]} 37. Rhg1 {[%emt 0:01:22]} Rh7 {[%emt 0:02:37]} 38. Rh1 {[%emt 0:01:26]} Kd6 {[%emt 0:00:32]} 39. Rhg1 {[%emt 0:00:30]} Kc5 {[%emt 0:00:39]} 40. Bf1 {[%emt 0:01:21]} Rg7 {[%emt 0:03:54]} 41. Ke1 {[%emt 0:08:49]} f4 {[%emt 0:04:05]} 42. Kd2 {[%emt 0:04:20]} Bxh3 {[%emt 0:02:53]} 43. Bxh3 {[%emt 0:00:43]} Rxh3 {[%emt 0:00:11]} 44. exf4 {[%emt 0:00:13]} exf4 {[%emt 0:00:22]} 45. Rbf1 {[%emt 0:07:10]} Rh4 {[%emt 0:07:29]} 46. Kc3 {[%emt 0:02:30]} Kd6 {[%emt 0:00:07]} 47. Kd4 {[%emt 0:01:43]} c5+ {[%emt 0:06:20]} 48. Kc3 {[%emt 0:02:38]} Ke5 {[%emt 0:02:54]} 49. e3 {[%emt 0:02:24]} b6 {[%emt 0:00:53]} 50. exf4+ {[%emt 0:05:05]} Rxf4 {[%emt 0:00:02]} 51. Re1+ {[%emt 0:02:35]} Kf5 {[%emt 0:00:33]} 52. Re8 {[%emt 0:00:27]} g4 {[%emt 0:00:55]} 53. Kd2 {[%emt 0:00:25]} g3 {[%emt 0:02:44]} 54. Ke3 {[%emt 0:00:38]} Kg4 {[%emt 0:00:53]} 55. Re6 {[%emt 0:00:46]} Rf2 {[%emt 0:04:42]} 56. Re8 {[%emt 0:00:56]} Rb2 {[%emt 0:01:51]} 57. Re6 {[%emt 0:00:27]} g2 {[%emt 0:00:42]} 58. Rxb6 {[%emt 0:00:35]} Re7+ {Ke4} 0-1

[Event "48th Rilton Cup 2018"]
[Site "Stockholm"]
[Date "2019.01.04"]
[Round "8"]
[White "Haug, Johannes"]
[Black "Zumsande, Martin"]
[Result "1/2-1/2"]
[ECO "A13"]
[WhiteElo "2402"]
[BlackElo "2490"]
[Annotator "ChessBase"]
[PlyCount "84"]
[EventDate "2018.12.27"]
[EventType "swiss"]
[EventCountry "SWE"]
[SourceTitle "playchess.com"]
[Source "ChessBase"]
[SourceQuality "1"]
[TimeControl "40/5400+30:1800+30"]

1. Nf3 {[%emt 0:00:00]} d5 {[%emt 0:00:00]} 2. g3 {[%emt 0:00:09]} Nf6 {[%emt 0:00:00]} 3. Bg2 {[%emt 0:00:08]} e6 {[%emt 0:00:15]} 4. c4 {[%emt 0:00:21]} dxc4 {[%emt 0:02:02]} 5. Qa4+ {[%emt 0:00:57]} Nbd7 {[%emt 0:00:55]} 6. Qxc4 {[%emt 0:00:29]} c5 {[%emt 0:00:32]} 7. O-O {[%emt 0:02:17]} b6 {[%emt 0:01:19]} 8. b3 {[%emt 0:07:22]} Bb7 {[%emt 0:03:33]} 9. Bb2 {[%emt 0:03:33]} Rc8 {[%emt 0:07:55]} 10. d3 {[%emt 0:09:13]} Be7 {[%emt 0:02:15]} 11. Nbd2 {[%emt 0:02:08]} O-O {[%emt 0:01:50]} 12. Rfd1 {[%emt 0:07:13]} a6 {[%emt 0:05:47]} 13. Qc2 {[%emt 0:00:31]} b5 {[%emt 0:03:46]} 14. Rac1 {[%emt 0:07:45]} Qb6 {[%emt 0:03:02]} 15. a3 {[%emt 0:04:10]} Rfd8 {[%emt 0:05:32]} 16. Qb1 {[%emt 0:00:30]} Ne8 {[%emt 0:11:57]} 17. e3 {[%emt 0:13:13]} Qa7 {[%emt 0:07:49]} 18. Qa1 {[%emt 0:12:54]} Qa8 {[%emt 0:03:42]} 19. e4 {[%emt 0:05:26]} Nb8 {[%emt 0:04:17]} 20. Bf1 {[%emt 0:01:43]} Nc6 {[%emt 0:01:18]} 21. Ne5 {[%emt 0:02:01]} Nd4 {[%emt 0:03:55]} 22. Nef3 {[%emt 0:00:34]} Nxf3+ {[%emt 0:05:55]} 23. Nxf3 {[%emt 0:00:27]} c4 {[%emt 0:00:04]} 24. dxc4 {[%emt 0:02:56]} Bxe4 {[%emt 0:03:24]} 25. Ne1 {[%emt 0:01:22]} bxc4 {[%emt 0:01:27]} 26. Bxc4 {[%emt 0:03:19]} h5 {[%emt 0:03:15]} 27. Rxd8 {[%emt 0:03:55]} Rxd8 {[%emt 0:00:08]} 28. Rd1 {[%emt 0:00:10]} a5 {[%emt 0:03:28]} 29. Be2 {[%emt 0:02:52]} Nf6 {[%emt 0:05:47]} 30. Rxd8+ {[%emt 0:00:46]} Qxd8 {[%emt 0:00:05]} 31. Qd1 {[%emt 0:00:38]} Qb6 {[%emt 0:00:11]} 32. Bd4 {[%emt 0:02:16]} Qb7 {[%emt 0:04:56]} 33. Bxf6 {[%emt 0:02:04]} Bxf6 {[%emt 0:00:22]} 34. Bxh5 {[%emt 0:01:13]} Bd5 {[%emt 0:00:21]} 35. b4 {[%emt 0:00:30]} axb4 {[%emt 0:00:34]} 36. axb4 {[%emt 0:00:06]} Qxb4 {[%emt 0:01:19]} 37. Bf3 {[%emt 0:01:07]} Qb3 {[%emt 0:02:30]} 38. Qxb3 {[%emt 0:00:47]} Bxb3 {[%emt 0:00:06]} 39. Ng2 {[%emt 0:00:41]} Bd4 {[%emt 0:00:25]} 40. Ne3 {[%emt 0:01:07]} f5 {[%emt 0:01:47]} 41. Be2 {[%emt 0:07:07]} Kf7 {[%emt 0:01:24]} 42. Bc4 {[%emt 0:00:45]} Bxe3 {[%emt 0:00:21]} 1/2-1/2